bitfinex/quotes_ETHUSD_20250404
["timestamp","ask_amount","ask_price","bid_price","bid_amount"]
[1743751407362,0.55,1811.4,1811.3,0.7861]
[1743751407653,5.5203,1811.5,1811.3,0.7861]
[1743751408083,5.52059,1811.4,1811.3,0.7861]
[1743751408948,5.5192,1811.9,1811.5,5.52008]
[1743751409153,5.5192,1811.9,1811.5,11.73527678]
[1743751409355,5.51883,1812.0,1811.6,11.66001]
[1743751409575,5.51759,1812.4,1812.0,5.51874]
[1743751409777,11.03589,1812.3,1812.2,0.7861]
[1743751409949,0.55,1812.3,1812.2,0.7861]
[1743751410345,5.51758,1812.4,1812.2,0.7861]
[1743751410571,5.51785,1812.3,1812.2,0.7861]
[1743751411285,5.51758,1812.4,1812.2,0.7861]
[1743751411983,0.55,1812.4,1812.2,0.7861]
[1743751412286,5.51785,1812.3,1812.2,0.7861]
[1743751412456,11.58589,1812.3,1812.1,6.16]
[1743751412782,6.06815,1812.2,1812.1,6.16]
[1743751412968,0.55,1812.0,1811.8,12.3071]
[1743751413162,6.06893,1812.0,1811.8,12.3071]
[1743751413362,5.51906,1811.9,1811.8,12.3071]
[1743751413667,5.51845,1812.1,1811.8,12.3071]
[1743751413846,5.51845,1812.1,1811.8,17.82645]
[1743751414052,6.0682,1812.2,1811.8,23.34571]
[1743751414252,11.03656,1812.2,1811.8,19.81558837]
[1743751414556,5.51847,1812.1,1811.8,19.81558837]
[1743751415389,5.51847,1812.1,1811.8,14.29632837]
[1743751415570,5.51847,1812.1,1811.8,12.3071]
[1743751415775,5.51886,1812.0,1811.8,12.3071]
[1743751417087,5.51906,1811.9,1811.8,11.521]
[1743751417885,5.51886,1812.0,1811.8,11.521]
[1743751418389,11.03781,1812.0,1811.8,11.521]
[1743751418857,5.51886,1812.0,1811.8,11.521]
[1743751419985,5.51886,1812.0,1811.8,6.16]
[1743751421293,5.51906,1811.9,1811.8,6.16]
[1743751421494,6.06906,1811.9,1811.8,6.16]
[1743751422958,6.06937,1811.8,1811.7,6.16]
[1743751423182,5.51998,1811.6,1811.5,11.503]
[1743751423559,6.06998,1811.6,1811.5,6.16]
[1743751424260,0.55,1811.6,1811.5,6.16]
[1743751424459,6.06998,1811.6,1811.5,6.16]
[1743751425510,7.228961,1811.6,1811.5,6.16]
[1743751428497,0.55,1811.6,1811.5,6.9524]
[1743751428701,6.06998,1811.6,1811.5,6.9524]
[1743751428888,6.06998,1811.6,1811.5,6.16]
[1743751429678,0.55,1811.8,1811.5,11.68008]
[1743751429883,6.06938,1811.8,1811.6,1.960408]
[1743751430181,0.55,1811.8,1811.6,1.960408]
[1743751430906,5.51955,1811.8,1811.6,1.960408]
[1743751431091,0.55,1811.7,1811.6,0.7924]
[1743751431409,5.51907,1811.9,1811.6,6.31225]
[1743751431577,5.51907,1811.9,1811.7,5.343]
[1743751431989,5.51881,1812.0,1811.7,5.343]
[1743751432312,5.51881,1812.0,1811.8,6.16]
[1743751432897,5.51906,1811.9,1811.8,6.16]
[1743751433271,5.51881,1812.0,1811.8,6.16]
[1743751434106,5.51906,1811.9,1811.8,6.16]
[1743751434311,5.51881,1812.0,1811.8,6.16]
[1743751434488,11.0378,1812.0,1811.8,6.16]
[1743751434689,5.51906,1811.9,1811.8,6.16]
[1743751435208,5.51881,1812.0,1811.8,6.16]
[1743751435399,0.55,1811.9,1811.8,6.16]
[1743751435599,6.06906,1811.9,1811.8,6.16]
[1743751435901,8.213936,1811.9,1811.8,6.16]
[1743751436604,0.55,1811.7,1811.6,5.343]
[1743751436976,6.06967,1811.7,1811.6,5.343]
[1743751437414,0.55,1811.7,1811.6,5.343]
[1743751438314,0.55,1811.7,1811.6,10.86298]
[1743751438482,0.55,1811.7,1811.6,5.343]
[1743751439483,6.06967,1811.7,1811.6,5.343]
[1743751440205,5.5194,1811.8,1811.6,5.343]
[1743751440621,11.03894,1811.8,1811.6,5.343]
[1743751440807,5.5194,1811.8,1811.6,5.343]
[1743751441118,11.03899,1811.8,1811.6,5.343]
[1743751441328,5.51967,1811.7,1811.6,5.343]
[1743751441493,6.06998,1811.6,1811.5,6.16]
[1743751444537,0.55,1811.6,1811.5,6.16]
[1743751444732,0.4342,1812.1,1811.5,7.02599753]
[1743751444934,5.51828,1812.2,1811.8,6.33008]
[1743751445133,0.4342,1812.3,1811.9,5.51902]
[1743751445438,5.51834,1812.2,1812.0,6.16]
[1743751445605,6.06845,1812.1,1812.0,6.16]
[1743751446002,6.50265,1812.1,1812.0,6.16]
[1743751447133,9.50265,1812.1,1812.0,6.16]
[1743751447632,12.81565,1812.1,1812.0,6.16]
[1743751448232,9.50265,1812.1,1811.5,6.16]
[1743751448439,5.51998,1811.6,1811.5,6.16]
[1743751448636,6.06998,1811.6,1811.5,6.16]
[1743751448838,0.55,1811.4,1811.3,5.343]
[1743751449007,5.52052,1811.5,1811.3,5.343]
[1743751449336,0.55,1811.5,1811.3,10.86389]
[1743751450262,6.07039,1811.5,1811.3,5.343]
[1743751451237,0.55,1811.5,1811.3,5.343]
[1743751452013,0.55,1811.5,1811.3,10.8638]
[1743751452329,0.55,1811.7,1811.4,6.3833945]
[1743751452526,0.55,1811.7,1811.4,11.9039845]
[1743751452734,5.92510765,1812.3,1811.3,7.12614]
[1743751452735,9.12573309,1812.2,1811.7,0.8076]
[1743751453051,11.03848,1811.9,1811.7,6.9676]
[1743751453264,5.51937,1811.8,1811.7,6.9676]
[1743751454659,5.51917,1811.9,1811.7,6.9676]
[1743751455261,5.51937,1811.8,1811.7,6.16]
[1743751455597,0.55,1811.8,1811.7,6.16]
[1743751455861,6.06937,1811.8,1811.7,6.16]
[1743751458816,6.50357,1811.8,1811.7,6.16]
[1743751462242,9.02668909,1811.8,1811.7,6.16]
[1743751462550,10.5971548,1811.8,1811.7,6.16]
[1743751462851,5.51998,1811.6,1811.5,5.343]
[1743751463042,6.06998,1811.6,1811.5,5.343]
[1743751463270,0.55,1811.6,1811.5,5.343]
[1743751463456,0.55,1811.6,1811.5,6.1451]
[1743751463855,1.158798,1811.9,1811.5,7.36685773]
[1743751463856,11.0385,1811.9,1811.5,7.36685773]
[1743751464057,5.51976,1811.7,1811.5,6.1451]
[1743751464242,5.51998,1811.6,1811.5,6.1451]
[1743751464443,6.06998,1811.6,1811.5,6.1451]
[1743751465389,0.55,1811.6,1811.5,6.1451]
[1743751465598,0.55,1811.7,1811.5,12.27981]
[1743751465799,5.51909,1811.9,1811.5,12.27981]
[1743751466003,5.51941,1811.8,1811.5,12.27981]
[1743751466146,11.03894,1811.8,1811.5,12.27981]
[1743751466641,6.06916,1811.9,1811.6,5.57515384]
[1743751466946,5.5194,1811.8,1811.5,12.27981]
[1743751467146,6.06916,1811.9,1811.6,1.28317483]
[1743751467790,0.55,1811.9,1811.6,6.80289483]
[1743751468078,8.59160909,1812.1,1811.6,1.227981]
[1743751468274,8.59160909,1812.1,1811.5,12.27981]
[1743751468275,5.51981,1811.7,1811.5,6.1451]
[1743751468441,11.58894,1811.8,1811.5,6.1451]
[1743751468644,6.06972,1811.7,1811.5,6.1451]
[1743751468844,6.06972,1811.7,1811.5,12.3051]
[1743751470079,6.06972,1811.7,1811.5,17.82535]
[1743751470080,0.55,1811.7,1811.5,17.82535]
[1743751471670,5.51889,1812.0,1811.7,5.51958]
[1743751471996,5.51763,1812.4,1811.8,7.0152981]
[1743751472185,5.51763,1812.4,1812.1,0.8001]
[1743751472386,5.51755,1812.4,1812.1,6.3184]
[1743751472563,5.51755,1812.4,1812.1,6.37357826]
[1743751472962,5.51755,1812.4,1812.1,12.86652522]
[1743751473164,5.51729,1812.5,1812.1,12.81134696]
[1743751473360,5.51664,1812.7,1812.3,5.51757]
[1743751473564,5.51676,1812.7,1812.4,11.503]
[1743751474102,5.51676,1812.7,1812.5,0.8001]
[1743751474291,5.51632,1812.8,1812.5,7.01526853]
[1743751474470,5.51632,1812.8,1812.5,12.53240853]
[1743751474670,5.51632,1812.8,1812.5,12.47724]
[1743751474871,5.51548,1813.1,1812.7,5.5165]
[1743751475073,5.51584,1813.0,1812.8,6.16]
[1743751475400,0.55,1812.9,1812.8,6.16]
[1743751475600,6.06602,1812.9,1812.8,6.16]
[1743751475970,0.55,1812.9,1812.8,6.16]
[1743751476171,6.06602,1812.9,1812.8,6.16]
[1743751476805,7.224206,1812.9,1812.8,6.16]
[1743751477782,10.224206,1812.9,1812.8,6.16]
[1743751478810,10.224206,1812.9,1812.8,6.16]
[1743751480111,10.658406,1812.9,1812.8,6.16]
[1743751480615,5.51727,1812.5,1812.3,6.16]
[1743751480781,5.51656,1812.8,1812.4,6.29382]
[1743751480988,5.51664,1812.7,1812.4,6.90972]
[1743751481616,5.51647,1812.8,1812.5,0.05516743]
[1743751481979,11.03306,1812.8,1812.5,0.05516743]
[1743751482180,5.51647,1812.8,1812.5,0.05516743]
[1743751482381,5.51698,1812.6,1812.4,0.7763]
[1743751482702,5.5175,1812.5,1812.3,6.16]
[1743751483285,6.06699,1812.6,1812.3,6.16]
[1743751483504,5.51727,1812.5,1812.3,6.16]
[1743751483876,6.06669,1812.7,1812.4,5.51751]
[1743751484098,0.55,1812.7,1812.5,0.7763]
[1743751485002,5.51693,1812.6,1812.5,0.7763]
[1743751485312,0.55,1812.7,1812.5,0.7763]
[1743751485503,6.06671,1812.7,1812.5,0.7763]
[1743751485915,11.58356,1812.7,1812.5,0.7763]
[1743751486091,6.06671,1812.7,1812.5,0.7763]
[1743751486416,6.06671,1812.7,1812.5,6.9363]
[1743751487019,0.55,1812.7,1812.5,6.9363]
[1743751487206,0.55,1812.8,1812.5,12.50869754]
[1743751487518,5.51578,1813.0,1812.6,5.51692]
[1743751487714,5.51578,1813.0,1812.7,0.05516058]
[1743751488217,5.51578,1813.0,1812.8,0.7763]
[1743751489524,11.03168,1813.0,1812.8,0.7763]
[1743751489716,5.51578,1813.0,1812.8,0.7763]
[1743751490195,11.03178,1813.0,1812.8,0.7763]
[1743751490397,5.51578,1813.0,1812.8,0.7763]
[1743751490589,11.03177,1813.0,1812.8,0.7763]
[1743751490917,5.51578,1813.0,1812.8,0.7763]
[1743751491216,5.51509,1813.3,1812.9,6.16]
[1743751491514,5.51459,1813.4,1813.1,6.28737]
[1743751491714,0.55,1813.3,1813.1,0.7721]
[1743751495335,0.55,1813.5,1813.1,6.98725058]
[1743751495502,6.06432,1813.5,1813.1,12.50265058]
[1743751495703,6.06432,1813.5,1813.1,18.85339121]
[1743751495887,5.5145,1813.4,1813.1,13.33799121]
[1743751496292,11.02916,1813.4,1813.1,13.33799121]
[1743751496494,5.51486,1813.3,1813.1,7.82271121]
[1743751496727,5.51486,1813.3,1813.1,6.9321]
[1743751496910,0.55,1813.3,1813.1,6.9321]
[1743751497208,6.06487,1813.3,1813.1,6.9321]
[1743751498929,5.51511,1813.2,1813.1,6.16]
[1743751499226,6.06511,1813.2,1813.1,6.16]
[1743751499529,10.53041991,1813.2,1813.1,6.16]
[1743751499724,9.06511,1813.2,1813.1,6.16]
[1743751500036,6.06511,1813.2,1813.1,6.16]
[1743751500340,9.49931,1813.2,1813.1,6.16]
[1743751500755,5.51658,1812.8,1812.6,45.87]
[1743751500910,0.55,1812.8,1812.6,45.87]
[1743751501825,6.06636,1812.8,1812.6,45.87]
[1743751502853,11.58285,1812.8,1812.6,45.87]
[1743751503040,5.51663,1812.7,1812.6,6.16]
[1743751503346,6.06663,1812.7,1812.6,6.16]
[1743751506641,9.02394909,1812.7,1812.3,6.16]
[1743751506843,5.51785,1812.3,1812.2,6.16]
[1743751507015,6.06785,1812.3,1812.2,6.16]
[1743751507422,8.59096909,1812.3,1812.2,6.16]
[1743751507744,10.04524,1812.3,1812.2,6.16]
[1743751508237,8.59096909,1812.3,1812.2,6.16]
[1743751508442,6.06785,1812.3,1812.2,6.16]
[1743751512825,0.55,1812.1,1811.9,12.49415371]
[1743751513153,5.51785,1812.3,1812.0,5.51873]
[1743751513356,0.55,1812.2,1812.0,5.57391198]
[1743751513559,0.55,1812.2,1812.1,0.5573912]
[1743751513772,5.51697,1812.6,1812.2,0.7901]
[1743751514056,11.03483,1812.5,1812.2,0.7901]
[1743751514534,0.4342,1812.8,1812.3,0.05517505]
[1743751514738,5.51694,1812.6,1812.4,6.16]
[1743751515345,0.55,1812.5,1812.4,6.16]
[1743751515520,6.06724,1812.5,1812.4,6.16]
[1743751516231,8.59035909,1812.5,1812.4,6.16]
[1743751517447,9.02455909,1812.5,1812.4,6.16]
[1743751518818,0.55,1812.2,1812.1,11.5]
[1743751519014,6.06756,1812.4,1812.1,18.799292]
[1743751519415,5.51748,1812.5,1812.2,0.7901]
[1743751519650,0.55,1812.4,1812.2,0.7901]
[1743751519856,0.55,1812.4,1812.2,6.3082]
[1743751520040,5.51677,1812.7,1812.3,0.63082]
[1743751520351,6.06693,1812.6,1812.5,0.7901]
[1743751523535,0.55,1812.6,1812.5,0.7901]
[1743751523947,8.03918909,1812.9,1812.5,6.30717]
[1743751524141,0.55,1812.8,1812.5,11.70234005]
[1743751524357,0.55,1812.8,1812.5,7.65846096]
[1743751524557,6.06693,1812.6,1812.5,11.5]
[1743751525247,0.55,1812.6,1812.5,11.5]
[1743751525843,6.06693,1812.6,1812.5,6.16]
[1743751526154,8.59004909,1812.6,1812.5,6.16]
[1743751526731,11.59004909,1812.6,1812.5,6.16]
[1743751527056,5.51844,1812.2,1811.9,12.3078]
[1743751527223,5.51876,1812.0,1811.9,11.5]
[1743751527429,6.06876,1812.0,1811.9,6.16]
[1743751528042,6.06937,1811.8,1811.7,6.16]
[1743751529438,0.55,1811.8,1811.7,6.16]
[1743751530959,8.04135909,1812.2,1811.7,13.51749292]
[1743751530960,6.06856,1812.1,1811.7,13.51749292]
[1743751531160,6.06856,1812.1,1811.7,13.462297]
[1743751531359,0.55,1812.1,1811.8,5.57447899]
[1743751531532,5.5179,1812.3,1811.9,12.48682]
[1743751531732,5.5179,1812.3,1812.0,17.07478077]
[1743751531733,0.55,1812.3,1812.0,17.07478077]
[1743751531934,6.06796,1812.3,1812.0,13.02746596]
[1743751532163,5.51796,1812.3,1812.0,13.02746596]
[1743751532468,5.51762,1812.4,1812.1,11.67832]
[1743751532760,5.51762,1812.4,1812.2,0.05517545]
[1743751533059,5.51762,1812.4,1812.1,13.461087]
[1743751533563,0.55,1812.3,1812.1,7.942767]
[1743751533864,6.06815,1812.2,1812.1,6.16]
[1743751534659,0.55,1812.2,1812.1,6.16]
[1743751534864,6.06815,1812.2,1812.1,6.16]
[1743751535474,0.55,1812.2,1812.1,6.16]
[1743751535974,6.06815,1812.2,1812.1,6.16]
[1743751536181,8.03087291,1812.2,1812.1,6.16]
[1743751536331,6.06845,1812.1,1812.0,6.16]
[1743751536752,5.51765,1812.4,1812.0,6.16]
[1743751536948,5.51765,1812.4,1812.1,5.51836]
[1743751537145,11.03542,1812.4,1812.0,11.6787]
[1743751537346,11.03542,1812.4,1812.1,1.22304811]
[1743751537764,5.51765,1812.4,1812.1,1.22304811]
[1743751537964,0.55,1812.5,1812.1,1.22304811]
[1743751538170,5.51773,1812.4,1812.1,1.16787]
[1743751538376,5.51785,1812.3,1812.1,1.16787]
[1743751538541,5.51785,1812.3,1812.1,1.22304838]
[1743751538745,11.03586,1812.3,1812.1,1.22304838]
[1743751538967,0.55,1812.2,1812.1,0.05517838]
[1743751539144,6.06763,1812.4,1812.1,0.05517838]
[1743751539345,11.58535,1812.4,1812.1,0.05517838]
[1743751540064,5.51786,1812.3,1812.0,11.67851]
[1743751540240,0.55,1812.1,1812.0,6.16]
[1743751540440,6.06845,1812.1,1812.0,6.16]
[1743751542075,6.06845,1812.1,1811.8,6.16]
[1743751542076,6.06906,1811.9,1811.8,6.16]
[1743751542273,6.06937,1811.8,1811.7,6.16]
[1743751553054,6.06998,1811.6,1811.5,0.7956]
[1743751553246,11.04011,1811.6,1811.4,6.16]
[1743751553451,5.51998,1811.6,1811.4,6.16]
[1743751554686,11.58951,1811.7,1811.4,6.16]
[1743751554880,5.51942,1811.8,1811.5,5.52018]
[1743751555061,11.03894,1811.8,1811.6,0.7996]
[1743751555378,6.07008,1811.6,1811.4,6.9596]
[1743751555874,0.55,1811.6,1811.4,6.9596]
[1743751556082,6.06999,1811.6,1811.4,6.9596]
[1743751556583,5.52028,1811.5,1811.4,6.16]
[1743751556757,6.07028,1811.5,1811.4,6.16]
[1743751556956,6.07059,1811.4,1811.3,6.16]
[1743751560091,0.55,1811.4,1811.3,6.16]
[1743751560284,6.679022,1811.6,1811.4,0.7749]
[1743751560285,5.51998,1811.6,1811.4,0.7749]
[1743751560650,11.04011,1811.6,1811.4,0.7749]
[1743751561190,11.04014,1811.6,1811.4,0.7749]
[1743751561386,5.51998,1811.6,1811.4,0.7749]
[1743751561585,11.04023,1811.6,1811.4,0.7749]
[1743751561753,5.51998,1811.6,1811.4,0.7749]
[1743751561959,5.51922,1811.9,1811.5,11.68015]
[1743751562155,5.51986,1811.7,1811.5,6.16]
[1743751562382,11.03981,1811.7,1811.5,6.16]
[1743751563093,5.51939,1811.8,1811.5,6.16]
[1743751563261,11.58831,1811.9,1811.5,18.52130075]
[1743751563460,5.5194,1811.8,1811.6,0.7749]
[1743751563795,5.51967,1811.7,1811.6,0.7749]
[1743751563971,5.5194,1811.8,1811.5,6.9349]
[1743751564167,2.9332776,1812.0,1811.7,5.51961]
[1743751564168,5.51882,1812.0,1811.7,5.51961]
[1743751564375,5.51896,1812.0,1811.8,0.7749]
[1743751564712,5.51906,1811.9,1811.8,0.7749]
[1743751565405,5.51896,1812.0,1811.8,0.7749]
[1743751565606,11.03789,1812.0,1811.8,0.7749]
[1743751565764,5.51893,1812.0,1811.8,0.7749]
[1743751566265,11.03785,1812.0,1811.8,0.7749]
[1743751566887,8.51855,1812.1,1811.8,0.83009082]
[1743751567077,5.51855,1812.1,1811.8,7.04290082]
[1743751567279,5.5182,1812.2,1811.9,6.29385]
[1743751567477,11.03592,1812.3,1812.0,5.341]
[1743751568084,11.03593,1812.3,1812.0,5.341]
[1743751568771,5.51788,1812.3,1812.1,0.7637]
[1743751568965,5.51788,1812.3,1812.1,6.9237]
[1743751569971,5.51756,1812.4,1812.1,14.220358]
[1743751570177,11.03416,1812.6,1812.3,0.7637]
[1743751570912,5.51699,1812.6,1812.3,6.28148]
[1743751571076,8.51668,1812.7,1812.3,11.79917]
[1743751571277,14.03348,1812.7,1812.3,12.44139]
[1743751571520,14.03348,1812.7,1812.3,17.95907]
[1743751571702,8.51668,1812.7,1812.3,17.95907]
[1743751572272,8.51668,1812.7,1812.3,18.79647496]
[1743751572487,8.03949909,1812.8,1812.4,17.01837]
[1743751572776,5.51674,1812.7,1812.4,11.501]
[1743751573105,5.51704,1812.6,1812.4,11.501]
[1743751573398,5.51724,1812.5,1812.4,11.501]
[1743751573606,5.51761,1812.4,1812.2,6.16]
[1743751573801,5.51785,1812.3,1812.2,6.16]
[1743751574004,5.51761,1812.4,1812.2,6.16]
[1743751574373,11.03536,1812.4,1812.2,6.16]
[1743751574573,5.51785,1812.3,1812.2,6.16]
[1743751575277,11.03463,1812.5,1812.2,6.16]
[1743751575521,5.51706,1812.6,1812.3,0.7637]
[1743751575855,8.51665,1812.7,1812.3,11.79914]
[1743751576023,8.51665,1812.7,1812.4,6.21516838]
[1743751576227,14.03348,1812.7,1812.4,6.16]
[1743751576427,14.0335,1812.7,1812.4,6.16]
[1743751576624,5.51694,1812.6,1812.4,7.13918796]
[1743751576943,5.51665,1812.7,1812.4,12.71188773]
[1743751577141,5.51665,1812.7,1812.4,12.65671796]
[1743751578253,5.51665,1812.7,1812.4,7.13918796]
[1743751578569,5.51665,1812.7,1812.4,7.1943577]
[1743751578964,5.51665,1812.7,1812.4,12.7118677]
[1743751579146,5.51665,1812.7,1812.5,1.27118677]
[1743751579646,8.51602,1812.9,1812.6,6.28063]
[1743751579950,5.51602,1812.9,1812.6,6.28063]
[1743751580311,5.51529,1813.2,1812.8,0.8178]
[1743751580617,5.51529,1813.2,1812.9,11.55515453]
[1743751580860,11.03062,1813.2,1812.9,11.5]
[1743751581418,5.51529,1813.2,1812.9,11.5]
[1743751581653,11.03064,1813.2,1812.9,11.5]
[1743751582162,3.0,1813.3,1812.9,17.01586]
[1743751582316,8.51494,1813.3,1812.9,19.05390619]
[1743751582518,14.02993,1813.3,1812.9,19.05390619]
[1743751582716,8.51494,1813.3,1812.9,24.56974619]
[1743751582918,8.51494,1813.3,1813.1,0.8178]
[1743751583241,14.02993,1813.3,1813.1,0.8178]
[1743751583757,5.51511,1813.2,1813.1,0.8178]
[1743751583926,5.51548,1813.1,1812.9,12.3178]
[1743751584127,5.51548,1813.1,1812.9,6.16]
[1743751584439,8.03882909,1813.0,1812.9,6.16]
[1743751585019,11.03882909,1813.0,1812.9,6.16]
[1743751585477,12.02302909,1813.0,1812.9,6.16]
[1743751585679,5.51685,1812.7,1812.5,6.16]
[1743751588121,5.51605,1812.9,1812.6,0.7762]
[1743751588423,5.5164,1812.8,1812.6,0.7762]
[1743751589856,11.03227,1812.9,1812.6,0.7762]
[1743751590029,8.51573,1813.0,1812.6,8.14520545]
[1743751590235,5.51573,1813.0,1812.7,5.51662]
[1743751590823,11.03162,1813.0,1812.7,5.51662]
[1743751591057,11.03161,1813.0,1812.7,5.51662]
[1743751591361,5.51604,1812.9,1812.6,8.09004]
[1743751591569,5.51604,1812.9,1812.6,8.14520155]
[1743751591855,5.51573,1813.0,1812.7,6.33112016]
[1743751592227,5.51513,1813.2,1812.9,6.29211]
[1743751592428,5.51513,1813.2,1812.9,12.45211]
[1743751592727,5.51549,1813.1,1812.9,6.9362]
[1743751592927,5.51571,1813.0,1812.9,6.16]
[1743751593153,11.03108,1813.1,1812.9,6.16]
[1743751593461,5.51571,1813.0,1812.9,6.16]
[1743751593967,5.51549,1813.1,1812.9,6.16]
[1743751594476,5.51516,1813.2,1812.9,6.16]
[1743751594678,11.03042,1813.2,1812.9,11.67601]
[1743751595488,11.03042,1813.2,1812.9,6.16]
[1743751595891,5.51516,1813.2,1812.9,6.16]
[1743751596065,5.51516,1813.2,1812.9,11.67601]
[1743751596390,11.03043,1813.2,1813.0,0.7762]
[1743751596591,5.51541,1813.1,1813.0,0.7762]
[1743751596755,11.03101,1813.1,1812.9,6.9362]
[1743751596956,5.51515,1813.2,1812.9,12.45212]
[1743751597485,11.03042,1813.2,1812.9,12.45212]
[1743751597688,11.03042,1813.2,1812.9,6.9362]
[1743751598186,5.51515,1813.2,1812.9,6.9362]
[1743751598348,11.03042,1813.2,1812.9,6.9362]
[1743751598988,5.51515,1813.2,1812.9,6.9362]
[1743751599669,11.03046,1813.2,1812.9,6.9362]
[1743751600462,8.5146,1813.4,1813.0,11.08617508]
[1743751600659,5.51426,1813.5,1813.1,0.7659]
[1743751600865,5.94792,1813.7,1813.3,5.5146]
[1743751601292,5.51392,1813.6,1813.3,5.5146]
[1743751601458,5.51398,1813.6,1813.3,5.5146]
[1743751601660,5.51398,1813.6,1813.2,17.01207]
[1743751601860,5.51398,1813.6,1813.2,18.789867]
[1743751602283,6.04719,1813.9,1813.3,0.7659]
[1743751602572,5.51332,1813.8,1813.5,5.51389]
[1743751603084,6.04719,1813.9,1813.5,11.02793]
[1743751603256,0.1,1813.9,1813.8,5.51328]
[1743751603449,0.1,1813.9,1813.8,13.59698035]
[1743751603648,0.1,1813.9,1813.8,13.541854]
[1743751604290,0.1,1813.9,1813.8,6.9259]
[1743751604463,5.61298,1813.9,1813.8,6.16]
[1743751605779,0.1,1813.9,1813.8,6.16]
[1743751607053,5.61298,1813.9,1813.8,6.16]
[1743751612474,5.51328,1813.8,1813.7,5.336]
[1743751612977,0.65,1813.9,1813.7,5.336]
[1743751613177,5.613,1813.9,1813.7,6.1268]
[1743751613357,11.12619,1813.9,1813.7,6.1268]
[1743751613722,5.51328,1813.8,1813.7,6.1268]
[1743751613871,0.1,1813.9,1813.7,12.86897]
[1743751614225,0.1,1813.9,1813.8,5.56840643]
[1743751614501,0.1,1813.9,1813.8,12.51920643]
[1743751614709,0.1,1813.9,1813.8,12.46408]
[1743751614900,0.1,1813.9,1813.8,14.54463296]
[1743751615100,5.51086,1814.6,1814.2,5.51183]
[1743751615306,0.1,1814.9,1814.5,5.51116]
[1743751615604,5.51024,1814.8,1814.4,6.1248]
[1743751615786,5.51076,1814.7,1814.4,6.1248]
[1743751616304,11.0215,1814.7,1814.4,6.1248]
[1743751616603,5.51086,1814.6,1814.4,6.1248]
[1743751616900,5.51086,1814.6,1814.4,6.17990858]
[1743751617113,11.02154,1814.7,1814.4,7.40858858]
[1743751617270,5.51087,1814.6,1814.4,7.40858858]
[1743751617474,5.51087,1814.6,1814.3,6.16]
[1743751617475,5.51116,1814.5,1814.3,6.16]
[1743751617701,5.51146,1814.4,1814.3,6.16]
[1743751618276,5.51176,1814.3,1814.2,6.16]
[1743751620693,5.51146,1814.4,1814.2,6.16]
[1743751620896,11.02311,1814.4,1814.2,6.16]
[1743751621200,5.51146,1814.4,1814.2,6.16]
[1743751621375,11.02309,1814.4,1814.2,6.16]
[1743751621575,5.51146,1814.4,1814.2,6.16]
[1743751621778,5.51176,1814.3,1814.2,6.16]
[1743751622008,5.51207,1814.2,1814.1,5.334]
[1743751622236,5.51237,1814.1,1814.0,11.493]
[1743751622424,5.51207,1814.2,1814.0,11.493]
[1743751622590,11.0243,1814.2,1814.0,11.493]
[1743751623209,5.51207,1814.2,1814.0,11.493]
[1743751623988,11.02384,1814.3,1814.0,11.493]
[1743751624188,5.51181,1814.3,1814.0,11.493]
[1743751624409,5.51152,1814.4,1814.1,5.51223]
[1743751624624,5.51111,1814.6,1814.2,0.7908]
[1743751624924,5.51088,1814.6,1814.3,11.72669129]
[1743751625225,5.51088,1814.6,1814.4,5.333]
[1743751625226,11.02193,1814.6,1814.4,5.333]
[1743751625582,5.51116,1814.5,1814.4,5.333]
[1743751625782,5.51088,1814.6,1814.4,5.333]
[1743751626012,11.02189,1814.6,1814.4,5.333]
[1743751626211,5.51088,1814.6,1814.4,5.333]
[1743751627031,11.02073,1814.8,1814.5,0.7908]
[1743751627207,5.51028,1814.8,1814.5,0.7908]
[1743751627514,11.02071,1814.8,1814.5,0.7908]
[1743751628708,5.51028,1814.8,1814.5,0.7908]
[1743751629911,5.51068,1814.7,1814.5,0.7908]
[1743751630113,5.51068,1814.7,1814.5,6.9508]
[1743751630916,5.51085,1814.6,1814.5,6.9508]
[1743751631109,5.51068,1814.7,1814.5,6.9508]
[1743751631723,6.612775,1814.7,1814.5,6.16]
[1743751631920,5.51085,1814.6,1814.5,6.16]
[1743751634320,5.51068,1814.7,1814.5,6.16]
[1743751634627,11.02138,1814.7,1814.5,6.16]
[1743751634923,5.51085,1814.6,1814.5,6.16]
[1743751635920,5.51129,1814.5,1814.3,12.3232]
[1743751636322,11.02125,1814.7,1814.3,19.06705]
[1743751636516,5.51059,1814.7,1814.3,19.06705]
[1743751636725,5.51029,1814.8,1814.4,5.51146]
[1743751637014,0.1,1814.9,1814.6,0.8312]
[1743751637201,0.1,1814.9,1814.8,6.34144]
[1743751637408,0.1,1814.9,1814.8,14.63344428]
[1743751637620,0.1,1814.9,1814.8,14.57835296]
[1743751638227,5.50721,1815.8,1815.4,5.50841]
[1743751638431,5.50771,1815.7,1815.4,11.391]
[1743751638728,5.50771,1815.7,1815.5,0.8312]
[1743751638907,0.6341,1815.9,1815.4,11.391]
[1743751638908,5.50783,1815.6,1815.4,11.391]
[1743751639095,5.50756,1815.7,1815.4,11.391]